[Event "Titled Tuesday Blitz January 10 Late 2023"]
[White "Karacsonyi, Gellert"]
[Black "Lopez Mulet, Inigo"]
[WhiteFideId "764620"]
[BlackFideId "22235620"]
[WhiteElo "2385"]
[BlackElo "2403"]
[Result "1-0"]
[Round "07"]
[TimeControl "180+2"]
[Date "2023.01.10"]
[WhiteClock "0:02:01"]
[BlackClock "0:01:53"]

1. e4 {[%clk 0:00:00]}  c5 {[%clk 0:00:00]} 2. Nf3 {[%clk 0:03:00]}  g6 {[%clk 0:02:54]} 3. d4 {[%clk 0:03:00]}  cxd4 {[%clk 0:02:52]} 4. Nxd4 {[%clk 0:03:01]}  Bg7 {[%clk 0:02:53]} 5. Nc3 {[%clk 0:03:01]}  Nc6 {[%clk 0:02:53]} 6. Be3 {[%clk 0:03:00]}  Nf6 {[%clk 0:02:53]} 7. Bc4 {[%clk 0:03:01]}  O-O {[%clk 0:02:53]} 8. Bb3 {[%clk 0:03:01]}  d6 {[%clk 0:02:54]} 9. f3 {[%clk 0:03:02]}  Bd7 {[%clk 0:02:49]} 10. Qd2 {[%clk 0:03:01]}  Nxd4 {[%clk 0:02:41]} 11. Bxd4 {[%clk 0:03:01]}  b5 {[%clk 0:02:41]} 12. Nd5 {[%clk 0:03:01]}  a5 {[%clk 0:02:42]} 13. Nxf6+ {[%clk 0:02:59]}  exf6 {[%clk 0:02:33]} 14. Bd5 {[%clk 0:02:57]}  Rc8 {[%clk 0:02:33]} 15. h4 {[%clk 0:02:55]}  h5 {[%clk 0:02:30]} 16. g4 {[%clk 0:02:55]}  hxg4 {[%clk 0:02:25]} 17. h5 {[%clk 0:02:51]}  f5 {[%clk 0:02:25]} 18. hxg6 {[%clk 0:02:51]}  Rxc2 {[%clk 0:02:15]} 19. Rh8+ {[%clk 0:02:36]}  Bxh8 {[%clk 0:01:56]} 20. Qh6 {[%clk 0:02:15]}  Rh2 {[%clk 0:01:55]} 21. gxf7+ {[%clk 0:02:15]}  Rxf7 {[%clk 0:01:53]} 22. Qg6+ {[%clk 0:02:00]}  Bg7 {[%clk 0:01:53]} 23. Qxg7# {[%clk 0:02:01]} 1-0


[Site "https://www.chess.com"]

[Event "Titled Tuesday Blitz January 10 Late 2023"]
[White "Sourath Biswas"]
[Black "Injac, Teodora"]
[WhiteFideId "35091484"]
[BlackFideId "932400"]
[WhiteElo "2281"]
[BlackElo "2391"]
[Result "1-0"]
[Round "07"]
[TimeControl "180+2"]
[Date "2023.01.10"]
[WhiteClock "0:00:15"]
[BlackClock "0:00:08"]

1. d4 {[%clk 0:00:00]}  Nf6 {[%clk 0:00:00]} 2. Bf4 {[%clk 0:03:00]}  g6 {[%clk 0:02:59]} 3. Nc3 {[%clk 0:02:56]}  d5 {[%clk 0:02:58]} 4. e3 {[%clk 0:02:55]}  Bg7 {[%clk 0:02:58]} 5. h4 {[%clk 0:02:56]}  h5 {[%clk 0:02:58]} 6. Nf3 {[%clk 0:02:56]}  O-O {[%clk 0:02:58]} 7. Be2 {[%clk 0:02:55]}  c5 {[%clk 0:02:57]} 8. dxc5 {[%clk 0:02:55]}  Nc6 {[%clk 0:02:55]} 9. O-O {[%clk 0:02:54]}  Bg4 {[%clk 0:02:44]} 10. Nd4 {[%clk 0:02:49]}  Qd7 {[%clk 0:02:17]} 11. Qd3 {[%clk 0:02:31]}  e5 {[%clk 0:01:56]} 12. Nxc6 {[%clk 0:01:07]}  exf4 {[%clk 0:01:51]} 13. Ne5 {[%clk 0:01:07]}  Qc7 {[%clk 0:01:46]} 14. Nxg4 {[%clk 0:01:06]}  hxg4 {[%clk 0:01:34]} 15. Nxd5 {[%clk 0:01:00]}  Nxd5 {[%clk 0:01:33]} 16. Qxd5 {[%clk 0:00:59]}  Rad8 {[%clk 0:01:31]} 17. Qc4 {[%clk 0:01:00]}  fxe3 {[%clk 0:01:24]} 18. fxe3 {[%clk 0:00:59]}  Qe5 {[%clk 0:00:51]} 19. Qf4 {[%clk 0:00:55]}  Qxf4 {[%clk 0:00:47]} 20. Rxf4 {[%clk 0:00:48]}  Rd2 {[%clk 0:00:44]} 21. Bd3 {[%clk 0:00:47]}  f5 {[%clk 0:00:34]} 22. Rb4 {[%clk 0:00:48]}  Re8 {[%clk 0:00:30]} 23. Re1 {[%clk 0:00:42]}  Bh6 {[%clk 0:00:25]} 24. Rxb7 {[%clk 0:00:35]}  Rxe3 {[%clk 0:00:24]} 25. Re7 {[%clk 0:00:28]}  Rxe7 {[%clk 0:00:23]} 26. Rxe7 {[%clk 0:00:17]}  g3 {[%clk 0:00:12]} 27. c6 {[%clk 0:00:17]}  Rd1+ {[%clk 0:00:11]} 28. Bf1 {[%clk 0:00:15]}  Rd8 {[%clk 0:00:08]} 29. c7 {[%clk 0:00:15]} 1-0


[Site "https://www.chess.com"]

[Event "Titled Tuesday Blitz January 10 Late 2023"]
[White "Gavilan Diaz, Mario"]
[Black "Mikhailov, Viacheslav"]
[WhiteFideId "2260905"]
[BlackFideId "4187369"]
[WhiteElo "2271"]
[BlackElo "2428"]
[Result "0-1"]
[Round "07"]
[TimeControl "180+2"]
[Date "2023.01.10"]
[WhiteClock "0:00:02"]
[BlackClock "0:00:40"]

1. d4 {[%clk 0:00:00]}  c5 {[%clk 0:00:00]} 2. d5 {[%clk 0:03:00]}  e5 {[%clk 0:02:59]} 3. c4 {[%clk 0:03:00]}  d6 {[%clk 0:03:00]} 4. Nc3 {[%clk 0:03:00]}  Be7 {[%clk 0:03:00]} 5. g3 {[%clk 0:03:00]}  a6 {[%clk 0:03:00]} 6. a4 {[%clk 0:02:44]}  f5 {[%clk 0:03:00]} 7. Bg2 {[%clk 0:02:41]}  Nf6 {[%clk 0:03:00]} 8. e4 {[%clk 0:02:39]}  O-O {[%clk 0:02:58]} 9. Nge2 {[%clk 0:02:33]}  fxe4 {[%clk 0:02:58]} 10. Nxe4 {[%clk 0:02:31]}  Nxe4 {[%clk 0:02:57]} 11. Bxe4 {[%clk 0:02:31]}  Bh3 {[%clk 0:02:58]} 12. Ng1 {[%clk 0:02:31]}  Bf5 {[%clk 0:02:55]} 13. Qd3 {[%clk 0:02:25]}  Bxe4 {[%clk 0:02:53]} 14. Qxe4 {[%clk 0:02:18]}  Nd7 {[%clk 0:02:49]} 15. Nf3 {[%clk 0:02:19]}  Qe8 {[%clk 0:02:50]} 16. O-O {[%clk 0:02:09]}  Qh5 {[%clk 0:02:07]} 17. Kg2 {[%clk 0:02:03]}  Nf6 {[%clk 0:02:07]} 18. Qh4 {[%clk 0:01:46]}  Qg6 {[%clk 0:02:07]} 19. Qg5 {[%clk 0:01:15]}  Qe4 {[%clk 0:01:55]} 20. Qh4 {[%clk 0:00:56]}  Ng4 {[%clk 0:01:52]} 21. Qxe7 {[%clk 0:00:51]}  Qxf3+ {[%clk 0:01:49]} 22. Kh3 {[%clk 0:00:38]}  Nxf2+ {[%clk 0:01:49]} 23. Rxf2 {[%clk 0:00:22]}  Qxf2 {[%clk 0:01:49]} 24. Qxd6 {[%clk 0:00:22]}  Qf1+ {[%clk 0:01:50]} 25. Kh4 {[%clk 0:00:19]}  Qxc4+ {[%clk 0:01:43]} 26. Kh3 {[%clk 0:00:20]}  Qf1+ {[%clk 0:01:41]} 27. Kh4 {[%clk 0:00:19]}  Rae8 {[%clk 0:01:39]} 28. b3 {[%clk 0:00:19]}  Rf2 {[%clk 0:01:31]} 29. h3 {[%clk 0:00:18]}  Rf7 {[%clk 0:01:21]} 30. Bb2 {[%clk 0:00:12]}  Qf5 {[%clk 0:00:54]} 31. Bc3 {[%clk 0:00:09]}  Rf6 {[%clk 0:00:45]} 32. Qxc5 {[%clk 0:00:02]}  Rh6# {[%clk 0:00:40]} 0-1


[Site "https://www.chess.com"]

[Event "Titled Tuesday Blitz January 10 Late 2023"]
[White "Ansh M Shah"]
[Black "Haydon, David L"]
[WhiteFideId "25033379"]
[BlackFideId "415405"]
[WhiteElo "2171"]
[BlackElo "2253"]
[Result "1-0"]
[Round "07"]
[TimeControl "180+2"]
[Date "2023.01.10"]
[WhiteClock "0:00:15"]
[BlackClock "0:00:52"]

1. d4 {[%clk 0:00:00]}  c6 {[%clk 0:00:00]} 2. c4 {[%clk 0:03:00]}  d5 {[%clk 0:02:59]} 3. cxd5 {[%clk 0:02:59]}  cxd5 {[%clk 0:03:00]} 4. Nc3 {[%clk 0:03:00]}  Nf6 {[%clk 0:03:00]} 5. Bf4 {[%clk 0:03:01]}  Nc6 {[%clk 0:03:00]} 6. e3 {[%clk 0:03:01]}  Bg4 {[%clk 0:03:01]} 7. Nf3 {[%clk 0:03:02]}  Bxf3 {[%clk 0:03:01]} 8. gxf3 {[%clk 0:03:02]}  e6 {[%clk 0:03:01]} 9. Qb3 {[%clk 0:03:02]}  Qd7 {[%clk 0:03:02]} 10. Bd3 {[%clk 0:03:02]}  g6 {[%clk 0:02:59]} 11. O-O {[%clk 0:02:59]}  Bg7 {[%clk 0:02:57]} 12. Kh1 {[%clk 0:02:57]}  O-O {[%clk 0:02:56]} 13. Rac1 {[%clk 0:02:57]}  Nh5 {[%clk 0:02:56]} 14. Bg3 {[%clk 0:02:57]}  Rfd8 {[%clk 0:02:55]} 15. Bb5 {[%clk 0:02:57]}  Rac8 {[%clk 0:02:53]} 16. Na4 {[%clk 0:02:51]}  Qe7 {[%clk 0:02:50]} 17. Bxc6 {[%clk 0:02:48]}  bxc6 {[%clk 0:02:43]} 18. Kg2 {[%clk 0:02:45]}  e5 {[%clk 0:02:43]} 19. dxe5 {[%clk 0:02:42]}  Bxe5 {[%clk 0:02:41]} 20. Nc5 {[%clk 0:02:42]}  Nxg3 {[%clk 0:02:41]} 21. hxg3 {[%clk 0:02:30]}  d4 {[%clk 0:02:37]} 22. exd4 {[%clk 0:02:28]}  Bxd4 {[%clk 0:02:37]} 23. Rfe1 {[%clk 0:02:25]}  Qf8 {[%clk 0:02:36]} 24. Ne4 {[%clk 0:02:11]}  c5 {[%clk 0:02:24]} 25. Rc2 {[%clk 0:02:09]}  Kg7 {[%clk 0:02:22]} 26. Rh1 {[%clk 0:02:04]}  h6 {[%clk 0:02:17]} 27. Qc4 {[%clk 0:01:58]}  f5 {[%clk 0:02:16]} 28. Nd2 {[%clk 0:01:56]}  f4 {[%clk 0:02:13]} 29. g4 {[%clk 0:01:51]}  h5 {[%clk 0:02:01]} 30. gxh5 {[%clk 0:01:48]}  Qf5 {[%clk 0:01:51]} 31. Ne4 {[%clk 0:01:31]}  Re8 {[%clk 0:01:51]} 32. hxg6 {[%clk 0:01:25]}  Qxg6+ {[%clk 0:01:43]} 33. Kf1 {[%clk 0:01:07]}  Rxe4 {[%clk 0:01:37]} 34. fxe4 {[%clk 0:01:06]}  Qxe4 {[%clk 0:01:28]} 35. Rg1+ {[%clk 0:01:07]}  Kf6 {[%clk 0:01:29]} 36. Qe2 {[%clk 0:01:06]}  Qf5 {[%clk 0:01:28]} 37. Rd2 {[%clk 0:01:06]}  f3 {[%clk 0:01:25]} 38. Qd3 {[%clk 0:00:22]}  Qh3+ {[%clk 0:01:18]} 39. Ke1 {[%clk 0:00:22]}  Re8+ {[%clk 0:01:01]} 40. Kd1 {[%clk 0:00:21]}  Rg8 {[%clk 0:01:01]} 41. Rxg8 {[%clk 0:00:21]}  Qh1+ {[%clk 0:00:53]} 42. Kc2 {[%clk 0:00:15]}  Kf7 {[%clk 0:00:53]} 43. Qg6+ {[%clk 0:00:15]}  Ke7 {[%clk 0:00:52]} 44. Re8+ {[%clk 0:00:15]} 1-0


[Site "https://www.chess.com"]

[Event "Titled Tuesday Blitz January 10 Late 2023"]
[White "Abrahamyan, Tatev"]
[Black "Pasti, Aron"]
[WhiteFideId "13301918"]
[BlackFideId "785857"]
[WhiteElo "2294"]
[BlackElo "2361"]
[Result "1/2-1/2"]
[Round "07"]
[TimeControl "180+2"]
[Date "2023.01.10"]
[WhiteClock "0:00:13"]
[BlackClock "0:00:05"]

1. e4 {[%clk 0:00:00]}  c5 {[%clk 0:00:00]} 2. Nf3 {[%clk 0:03:00]}  e6 {[%clk 0:02:43]} 3. d4 {[%clk 0:03:00]}  cxd4 {[%clk 0:02:40]} 4. Nxd4 {[%clk 0:03:00]}  Nc6 {[%clk 0:02:41]} 5. Nc3 {[%clk 0:03:00]}  Qc7 {[%clk 0:02:41]} 6. f4 {[%clk 0:03:01]}  a6 {[%clk 0:02:41]} 7. Nxc6 {[%clk 0:03:00]}  bxc6 {[%clk 0:02:29]} 8. Bd3 {[%clk 0:03:00]}  d5 {[%clk 0:02:28]} 9. O-O {[%clk 0:03:00]}  Nf6 {[%clk 0:02:29]} 10. Qe2 {[%clk 0:02:58]}  Be7 {[%clk 0:02:28]} 11. Bd2 {[%clk 0:02:57]}  Rb8 {[%clk 0:02:25]} 12. b3 {[%clk 0:02:56]}  O-O {[%clk 0:02:23]} 13. Rae1 {[%clk 0:02:53]}  d4 {[%clk 0:02:23]} 14. Nb1 {[%clk 0:02:52]}  e5 {[%clk 0:02:19]} 15. f5 {[%clk 0:02:48]}  a5 {[%clk 0:02:19]} 16. g4 {[%clk 0:02:43]}  h6 {[%clk 0:02:14]} 17. g5 {[%clk 0:02:41]}  hxg5 {[%clk 0:02:10]} 18. Bxg5 {[%clk 0:02:16]}  Nh7 {[%clk 0:02:10]} 19. Bxe7 {[%clk 0:02:15]}  Qxe7 {[%clk 0:02:11]} 20. Nd2 {[%clk 0:02:09]}  a4 {[%clk 0:02:12]} 21. Kh1 {[%clk 0:02:09]}  axb3 {[%clk 0:02:05]} 22. axb3 {[%clk 0:02:07]}  Kh8 {[%clk 0:02:04]} 23. Rg1 {[%clk 0:02:05]}  f6 {[%clk 0:02:04]} 24. Bc4 {[%clk 0:02:03]}  Bd7 {[%clk 0:02:04]} 25. Rg3 {[%clk 0:01:57]}  Be8 {[%clk 0:02:02]} 26. Rh3 {[%clk 0:01:39]}  Bf7 {[%clk 0:01:58]} 27. Rg1 {[%clk 0:01:35]}  Ra8 {[%clk 0:01:56]} 28. Qg4 {[%clk 0:01:13]}  Bxc4 {[%clk 0:01:35]} 29. Nxc4 {[%clk 0:01:03]}  Qf7 {[%clk 0:01:31]} 30. Nd6 {[%clk 0:01:03]}  Qg8 {[%clk 0:01:18]} 31. Rgg3 {[%clk 0:00:51]}  Rfd8 {[%clk 0:01:15]} 32. Nc4 {[%clk 0:00:51]}  d3 {[%clk 0:00:51]} 33. cxd3 {[%clk 0:00:38]}  Ra1+ {[%clk 0:00:46]} 34. Kg2 {[%clk 0:00:36]}  Ra2+ {[%clk 0:00:43]} 35. Kf1 {[%clk 0:00:36]}  Ra1+ {[%clk 0:00:38]} 36. Ke2 {[%clk 0:00:34]}  Ra2+ {[%clk 0:00:33]} 37. Nd2 {[%clk 0:00:34]}  Rb8 {[%clk 0:00:32]} 38. Rxh7+ {[%clk 0:00:26]}  Qxh7 {[%clk 0:00:13]} 39. Rh3 {[%clk 0:00:22]}  Rxb3 {[%clk 0:00:13]} 40. Rxh7+ {[%clk 0:00:22]}  Kxh7 {[%clk 0:00:10]} 41. Qh5+ {[%clk 0:00:22]}  Kg8 {[%clk 0:00:11]} 42. Qe8+ {[%clk 0:00:18]}  Kh7 {[%clk 0:00:11]} 43. Qxc6 {[%clk 0:00:18]}  Rbb2 {[%clk 0:00:11]} 44. Qc3 {[%clk 0:00:14]}  Kh6 {[%clk 0:00:10]} 45. Ke3 {[%clk 0:00:14]}  Rxd2 {[%clk 0:00:08]} 46. Qxd2 {[%clk 0:00:12]}  Rxd2 {[%clk 0:00:08]} 47. Kxd2 {[%clk 0:00:11]}  Kg5 {[%clk 0:00:09]} 48. Ke3 {[%clk 0:00:11]}  Kg4 {[%clk 0:00:09]} 49. d4 {[%clk 0:00:11]}  exd4+ {[%clk 0:00:09]} 50. Kxd4 {[%clk 0:00:11]}  Kh3 {[%clk 0:00:07]} 51. e5 {[%clk 0:00:11]}  fxe5+ {[%clk 0:00:04]} 52. Kxe5 {[%clk 0:00:12]}  Kxh2 {[%clk 0:00:03]} 53. Ke6 {[%clk 0:00:12]}  Kg3 {[%clk 0:00:04]} 54. Kf7 {[%clk 0:00:13]}  Kf4 {[%clk 0:00:04]} 55. Kxg7 {[%clk 0:00:13]}  Kxf5 {[%clk 0:00:05]} 1/2-1/2


[Site "https://www.chess.com"]

[Event "Titled Tuesday Blitz January 10 Late 2023"]
[White "Ladan, Nicholas"]
[Black "Pakleza, Zbigniew"]
[WhiteFideId "30918855"]
[BlackFideId "1119290"]
[WhiteElo "2228"]
[BlackElo "2494"]
[Result "1-0"]
[Round "07"]
[TimeControl "180+2"]
[Date "2023.01.10"]
[WhiteClock "0:00:42"]
[BlackClock "0:00:02"]

1. b4 {[%clk 0:00:00]}  Nf6 {[%clk 0:00:00]} 2. Bb2 {[%clk 0:03:00]}  d5 {[%clk 0:02:30]} 3. e3 {[%clk 0:02:56]}  Bf5 {[%clk 0:02:30]} 4. d3 {[%clk 0:02:56]}  e6 {[%clk 0:02:30]} 5. a3 {[%clk 0:02:55]}  h6 {[%clk 0:02:31]} 6. Nf3 {[%clk 0:02:55]}  Be7 {[%clk 0:02:31]} 7. Nbd2 {[%clk 0:02:55]}  Bh7 {[%clk 0:02:31]} 8. Be2 {[%clk 0:02:56]}  Nbd7 {[%clk 0:02:31]} 9. O-O {[%clk 0:02:57]}  O-O {[%clk 0:02:29]} 10. c4 {[%clk 0:02:57]}  c6 {[%clk 0:02:29]} 11. Qb3 {[%clk 0:02:57]}  a5 {[%clk 0:02:29]} 12. Rfc1 {[%clk 0:02:57]}  Qb6 {[%clk 0:02:29]} 13. c5 {[%clk 0:02:55]}  Qc7 {[%clk 0:02:25]} 14. d4 {[%clk 0:02:46]}  b5 {[%clk 0:02:25]} 15. cxb6 {[%clk 0:02:38]}  Qxb6 {[%clk 0:02:17]} 16. bxa5 {[%clk 0:02:36]}  Qxa5 {[%clk 0:02:16]} 17. Rxc6 {[%clk 0:02:24]}  Rfb8 {[%clk 0:02:07]} 18. Qa2 {[%clk 0:02:17]}  Qa4 {[%clk 0:02:06]} 19. Rcc1 {[%clk 0:02:10]}  Nb6 {[%clk 0:01:59]} 20. Bd1 {[%clk 0:01:59]}  Qa6 {[%clk 0:01:46]} 21. a4 {[%clk 0:01:56]}  Ne4 {[%clk 0:01:43]} 22. Nxe4 {[%clk 0:01:53]}  Bxe4 {[%clk 0:01:18]} 23. Ne5 {[%clk 0:01:46]}  Bd6 {[%clk 0:01:19]} 24. a5 {[%clk 0:01:46]}  Bxe5 {[%clk 0:01:11]} 25. dxe5 {[%clk 0:01:33]}  Nc4 {[%clk 0:01:07]} 26. Bc3 {[%clk 0:01:33]}  Rc8 {[%clk 0:01:08]} 27. Be2 {[%clk 0:01:32]}  Ra7 {[%clk 0:00:41]} 28. Qa4 {[%clk 0:01:25]}  Rac7 {[%clk 0:00:35]} 29. Bd4 {[%clk 0:01:14]}  Kh7 {[%clk 0:00:33]} 30. h4 {[%clk 0:01:02]}  g5 {[%clk 0:00:12]} 31. hxg5 {[%clk 0:01:01]}  hxg5 {[%clk 0:00:10]} 32. f3 {[%clk 0:00:51]}  Bg6 {[%clk 0:00:11]} 33. Kf2 {[%clk 0:00:52]}  Kg7 {[%clk 0:00:10]} 34. Rh1 {[%clk 0:00:52]}  Ra8 {[%clk 0:00:10]} 35. Bb6 {[%clk 0:00:46]}  Nxb6 {[%clk 0:00:10]} 36. axb6 {[%clk 0:00:40]}  Qxa4 {[%clk 0:00:07]} 37. Rxa4 {[%clk 0:00:40]}  Rxa4 {[%clk 0:00:02]} 38. bxc7 {[%clk 0:00:41]}  Ra8 {[%clk 0:00:02]} 39. Rc1 {[%clk 0:00:42]} 1-0


[Site "https://www.chess.com"]

[Event "Titled Tuesday Blitz January 10 Late 2023"]
[White "Fernandez Garcia, Gumersindo"]
[Black "Maksimovic, Bojan"]
[WhiteFideId "24516740"]
[BlackFideId "14408120"]
[WhiteElo "2160"]
[BlackElo "2486"]
[Result "0-1"]
[Round "07"]
[TimeControl "180+2"]
[Date "2023.01.10"]
[WhiteClock "0:00:07"]
[BlackClock "0:00:54"]

1. d4 {[%clk 0:00:00]}  Nf6 {[%clk 0:00:00]} 2. c4 {[%clk 0:03:00]}  c5 {[%clk 0:02:58]} 3. d5 {[%clk 0:03:00]}  b5 {[%clk 0:02:58]} 4. cxb5 {[%clk 0:02:59]}  a6 {[%clk 0:02:58]} 5. bxa6 {[%clk 0:02:59]}  g6 {[%clk 0:02:58]} 6. Nc3 {[%clk 0:02:53]}  Bg7 {[%clk 0:02:58]} 7. e4 {[%clk 0:02:53]}  O-O {[%clk 0:02:58]} 8. e5 {[%clk 0:02:54]}  Ne8 {[%clk 0:02:58]} 9. h4 {[%clk 0:02:46]}  d6 {[%clk 0:02:58]} 10. h5 {[%clk 0:02:47]}  Bxe5 {[%clk 0:02:56]} 11. Bh6 {[%clk 0:02:32]}  Ng7 {[%clk 0:02:56]} 12. Bd3 {[%clk 0:02:23]}  Nxa6 {[%clk 0:02:53]} 13. Nf3 {[%clk 0:02:18]}  Bg4 {[%clk 0:02:44]} 14. hxg6 {[%clk 0:02:15]}  fxg6 {[%clk 0:02:43]} 15. Bxg7 {[%clk 0:02:11]}  Bxg7 {[%clk 0:02:42]} 16. Qe2 {[%clk 0:02:05]}  Nb4 {[%clk 0:02:36]} 17. Be4 {[%clk 0:01:32]}  Qa5 {[%clk 0:02:33]} 18. a3 {[%clk 0:01:28]}  Qa6 {[%clk 0:02:11]} 19. Qxa6 {[%clk 0:00:55]}  Nxa6 {[%clk 0:01:59]} 20. Kd2 {[%clk 0:00:50]}  Rfb8 {[%clk 0:01:58]} 21. Kc2 {[%clk 0:00:50]}  Nc7 {[%clk 0:01:51]} 22. Nd2 {[%clk 0:00:48]}  Bf5 {[%clk 0:01:36]} 23. Bxf5 {[%clk 0:00:42]}  gxf5 {[%clk 0:01:27]} 24. Rae1 {[%clk 0:00:41]}  Re8 {[%clk 0:01:26]} 25. Rh3 {[%clk 0:00:40]}  Bxc3 {[%clk 0:01:14]} 26. Rxc3 {[%clk 0:00:30]}  Nxd5 {[%clk 0:01:11]} 27. Rg3+ {[%clk 0:00:30]}  Kf7 {[%clk 0:01:12]} 28. Nc4 {[%clk 0:00:30]}  Rg8 {[%clk 0:01:12]} 29. Rh3 {[%clk 0:00:29]}  Rxg2 {[%clk 0:01:10]} 30. Rxh7+ {[%clk 0:00:26]}  Kg6 {[%clk 0:01:10]} 31. Rh3 {[%clk 0:00:19]}  Rxf2+ {[%clk 0:01:11]} 32. Kc1 {[%clk 0:00:17]}  Rg8 {[%clk 0:01:11]} 33. Ne3 {[%clk 0:00:18]}  Nxe3 {[%clk 0:01:11]} 34. Rexe3 {[%clk 0:00:10]}  e5 {[%clk 0:01:11]} 35. Kb1 {[%clk 0:00:10]}  f4 {[%clk 0:01:04]} 36. Rd3 {[%clk 0:00:10]}  Rd8 {[%clk 0:01:02]} 37. Rh1 {[%clk 0:00:10]}  c4 {[%clk 0:01:01]} 38. Rd5 {[%clk 0:00:09]}  Kf5 {[%clk 0:01:00]} 39. Rhd1 {[%clk 0:00:08]}  Ke6 {[%clk 0:01:01]} 40. a4 {[%clk 0:00:07]}  f3 {[%clk 0:01:01]} 41. a5 {[%clk 0:00:07]}  Re2 {[%clk 0:00:53]} 42. Rf1 {[%clk 0:00:07]}  Kxd5 {[%clk 0:00:54]} 0-1


[Site "https://www.chess.com"]

[Event "Titled Tuesday Blitz January 10 Late 2023"]
[White "Gubajdullin, Alexei"]
[Black "Jovic, Stanoje"]
[WhiteFideId "4141202"]
[BlackFideId "905020"]
[WhiteElo "2285"]
[BlackElo "2075"]
[Result "1-0"]
[Round "07"]
[TimeControl "180+2"]
[Date "2023.01.10"]
[WhiteClock "0:01:51"]
[BlackClock "0:00:08"]

1. d4 {[%clk 0:00:00]}  Nf6 {[%clk 0:00:00]} 2. Nf3 {[%clk 0:03:00]}  e6 {[%clk 0:02:59]} 3. Bf4 {[%clk 0:03:00]}  d5 {[%clk 0:02:58]} 4. e3 {[%clk 0:03:00]}  Bd6 {[%clk 0:02:58]} 5. Nbd2 {[%clk 0:03:00]}  O-O {[%clk 0:02:58]} 6. Bd3 {[%clk 0:02:59]}  b6 {[%clk 0:02:58]} 7. Bg3 {[%clk 0:02:59]}  c5 {[%clk 0:02:58]} 8. c3 {[%clk 0:02:58]}  Ba6 {[%clk 0:02:56]} 9. Bxa6 {[%clk 0:02:56]}  Nxa6 {[%clk 0:02:56]} 10. Ne5 {[%clk 0:02:53]}  Bxe5 {[%clk 0:02:55]} 11. dxe5 {[%clk 0:02:53]}  Ne4 {[%clk 0:02:53]} 12. Nxe4 {[%clk 0:02:50]}  dxe4 {[%clk 0:02:43]} 13. Qa4 {[%clk 0:02:48]}  Nc7 {[%clk 0:02:43]} 14. Qxe4 {[%clk 0:02:47]}  Qd5 {[%clk 0:02:33]} 15. Qxd5 {[%clk 0:02:45]}  Nxd5 {[%clk 0:02:32]} 16. e4 {[%clk 0:02:43]}  Nc7 {[%clk 0:02:31]} 17. Rd1 {[%clk 0:02:40]}  Rfd8 {[%clk 0:02:20]} 18. Ke2 {[%clk 0:02:39]}  Kf8 {[%clk 0:02:18]} 19. Bh4 {[%clk 0:02:37]}  Rxd1 {[%clk 0:02:13]} 20. Rxd1 {[%clk 0:02:36]}  Ke8 {[%clk 0:02:12]} 21. f4 {[%clk 0:02:36]}  a5 {[%clk 0:02:12]} 22. a4 {[%clk 0:02:35]}  b5 {[%clk 0:01:56]} 23. axb5 {[%clk 0:02:33]}  Nxb5 {[%clk 0:01:53]} 24. Kd3 {[%clk 0:02:33]}  a4 {[%clk 0:01:52]} 25. Kc4 {[%clk 0:02:31]}  Rb8 {[%clk 0:01:00]} 26. Kxc5 {[%clk 0:02:29]}  Na7 {[%clk 0:00:56]} 27. Rd4 {[%clk 0:02:14]}  Rb5+ {[%clk 0:00:45]} 28. Kd6 {[%clk 0:02:13]}  f6 {[%clk 0:00:31]} 29. Rxa4 {[%clk 0:02:13]}  Nc8+ {[%clk 0:00:16]} 30. Kxe6 {[%clk 0:02:08]}  Rb6+ {[%clk 0:00:12]} 31. Kd5 {[%clk 0:02:05]}  Rxb2 {[%clk 0:00:10]} 32. Ra8 {[%clk 0:02:04]}  Kd7 {[%clk 0:00:10]} 33. e6+ {[%clk 0:02:02]}  Kc7 {[%clk 0:00:10]} 34. Kc5 {[%clk 0:02:02]}  Rxg2 {[%clk 0:00:10]} 35. f5 {[%clk 0:01:54]}  Re2 {[%clk 0:00:08]} 36. Bg3+ {[%clk 0:01:51]} 1-0


[Site "https://www.chess.com"]

[Event "Titled Tuesday Blitz January 10 Late 2023"]
[White "Hamley, Ryan"]
[Black "Khandelwal, Ankush"]
[WhiteFideId "30959497"]
[BlackFideId "413470"]
[WhiteElo "2092"]
[BlackElo "2205"]
[Result "1-0"]
[Round "07"]
[TimeControl "180+2"]
[Date "2023.01.10"]
[WhiteClock "0:02:08"]
[BlackClock "0:01:00"]

1. d4 {[%clk 0:00:00]}  Nf6 {[%clk 0:00:00]} 2. c4 {[%clk 0:03:00]}  g6 {[%clk 0:02:59]} 3. Nc3 {[%clk 0:03:01]}  Bg7 {[%clk 0:02:59]} 4. e4 {[%clk 0:03:01]}  d6 {[%clk 0:02:59]} 5. Be3 {[%clk 0:03:01]}  O-O {[%clk 0:03:00]} 6. h3 {[%clk 0:03:01]}  Na6 {[%clk 0:02:59]} 7. g4 {[%clk 0:03:02]}  b6 {[%clk 0:02:55]} 8. Nge2 {[%clk 0:02:59]}  Bb7 {[%clk 0:02:12]} 9. Ng3 {[%clk 0:02:57]}  Nxe4 {[%clk 0:02:12]} 10. Ngxe4 {[%clk 0:02:57]}  f5 {[%clk 0:01:41]} 11. gxf5 {[%clk 0:02:55]}  gxf5 {[%clk 0:01:41]} 12. Rg1 {[%clk 0:02:55]}  fxe4 {[%clk 0:01:41]} 13. Qg4 {[%clk 0:02:51]}  Rf7 {[%clk 0:01:34]} 14. Nxe4 {[%clk 0:02:49]}  Qc8 {[%clk 0:01:34]} 15. Ng5 {[%clk 0:02:49]}  Qxg4 {[%clk 0:01:27]} 16. Rxg4 {[%clk 0:02:21]}  Rf6 {[%clk 0:01:23]} 17. Bd3 {[%clk 0:02:21]}  h6 {[%clk 0:01:16]} 18. Ne4 {[%clk 0:02:20]}  Bxe4 {[%clk 0:01:15]} 19. Bxe4 {[%clk 0:02:20]}  Raf8 {[%clk 0:01:08]} 20. Ke2 {[%clk 0:02:20]}  c5 {[%clk 0:01:06]} 21. Rag1 {[%clk 0:02:17]}  R8f7 {[%clk 0:01:04]} 22. Bg6 {[%clk 0:02:15]}  Rf8 {[%clk 0:01:00]} 23. Bh5 {[%clk 0:02:08]} 1-0


[Site "https://www.chess.com"]

[Event "Titled Tuesday Blitz January 10 Late 2023"]
[White "Solon, Nathan"]
[Black "Wu, Brandon"]
[WhiteFideId "2017229"]
[BlackFideId "30909228"]
[WhiteElo "2306"]
[BlackElo "2123"]
[Result "1-0"]
[Round "07"]
[TimeControl "180+2"]
[Date "2023.01.10"]
[WhiteClock "0:01:25"]
[BlackClock "0:01:23"]

1. Nf3 {[%clk 0:00:00]}  Nf6 {[%clk 0:00:00]} 2. g3 {[%clk 0:03:00]}  g6 {[%clk 0:03:00]} 3. b3 {[%clk 0:03:00]}  Bg7 {[%clk 0:03:00]} 4. Bb2 {[%clk 0:03:00]}  O-O {[%clk 0:03:00]} 5. Bg2 {[%clk 0:03:00]}  d5 {[%clk 0:03:01]} 6. c4 {[%clk 0:03:00]}  c5 {[%clk 0:03:02]} 7. cxd5 {[%clk 0:02:59]}  Nxd5 {[%clk 0:03:00]} 8. Bxg7 {[%clk 0:02:59]}  Kxg7 {[%clk 0:03:01]} 9. O-O {[%clk 0:02:55]}  Nc6 {[%clk 0:03:02]} 10. d4 {[%clk 0:02:51]}  cxd4 {[%clk 0:02:57]} 11. Nxd4 {[%clk 0:02:51]}  Nxd4 {[%clk 0:02:53]} 12. Qxd4+ {[%clk 0:02:52]}  Nf6 {[%clk 0:02:54]} 13. Qe5 {[%clk 0:02:52]}  Qb6 {[%clk 0:02:55]} 14. Nc3 {[%clk 0:02:53]}  Be6 {[%clk 0:02:49]} 15. Na4 {[%clk 0:02:48]}  Qb4 {[%clk 0:02:48]} 16. Nc5 {[%clk 0:02:27]}  Bc8 {[%clk 0:02:35]} 17. Qxe7 {[%clk 0:02:08]}  Qa5 {[%clk 0:01:48]} 18. Nxb7 {[%clk 0:02:03]}  Bxb7 {[%clk 0:01:28]} 19. Qxb7 {[%clk 0:01:29]}  Rae8 {[%clk 0:01:27]} 20. e3 {[%clk 0:01:30]}  h5 {[%clk 0:01:24]} 21. Rfc1 {[%clk 0:01:29]}  h4 {[%clk 0:01:23]} 22. Qc7 {[%clk 0:01:25]}  hxg3 {[%clk 0:01:23]} 23. Qxa5 {[%clk 0:01:25]} 1-0


[Site "https://www.chess.com"]